fUST/lending_fUST_20240728
["ID","MTS","AMOUNT","RATE_DAILY","PERIOD"]
[333459807,1722148246766,-97.66372927,0.0001452,2]
[333459809,1722148246775,-500.0,0.0001452,2]
[333459811,1722148246786,-500.0,0.0001452,2]
[333459813,1722148246796,-291.86170735,0.0001452,2]
[333459976,1722148717991,1000.0,0.00023349,120]
[333459981,1722149231146,-173.86519,0.00010456,2]
[333459982,1722149231171,-173.86519,0.00010546,2]
[333459983,1722149231194,-173.86519,0.00010637,2]
[333459984,1722149231219,-173.86519,0.00010728,2]
[333459985,1722149231243,-173.86519,0.00010819,2]
[333459986,1722149231266,-267.15061621,0.00010859,2]
[333459987,1722149231291,-173.86519,0.0001091,2]
[333459988,1722149231315,-300.0,0.00010958,2]
[333459989,1722149231339,-300.0,0.00010958,2]
[333459990,1722149231362,-168.067467,0.00010959,2]
[333459991,1722149231384,-734.05,0.00010959,2]
[333459992,1722149231406,-611.71,0.00010959,2]
[333459993,1722149231429,-509.76,0.00010959,2]
[333459994,1722149231454,-424.8,0.00010959,2]
[333459995,1722149231478,-354.0,0.00010959,2]
[333459996,1722149231503,-295.0,0.00010959,2]
[333459997,1722149231528,-295.0,0.00010959,2]
[333459998,1722149231550,-196.66,0.00010959,2]
[333459999,1722149231750,-163.89,0.00010959,2]
[333460000,1722149231774,-650.65354099,0.00010959,2]
[333460001,1722149246149,-242.24469971,0.00010463,2]
[333460002,1722149289511,273.37336231,9.9e-05,2]
[333460003,1722149297410,273.37336231,9.9e-05,2]
[333460004,1722149306807,273.37336231,9.9e-05,2]
[333460005,1722149315297,273.37336231,9.9e-05,2]
[333460006,1722149323414,273.37336231,9.9e-05,2]
[333460007,1722149331369,273.37336231,9.9e-05,2]
[333460008,1722149339659,273.37336231,9.9e-05,2]
[333460009,1722149349098,-300.0,0.00010462,2]
[333460010,1722149349120,-300.0,0.00010462,2]
[333460011,1722149349145,-1783.90729387,0.00010463,2]
[333460012,1722149349170,-3014.38295349,0.00010463,2]
[333460013,1722149349193,-11988.64702189,0.00010463,2]
[333460014,1722149349220,-168.8,0.00010959,2]
[333460015,1722149349255,-173.86519,0.00011,2]
[333460016,1722149349284,-18176.4428877,0.00011152,2]
[333460017,1722149349309,-420.0,0.00011508,2]
[333460018,1722149353143,-168.067467,0.00012241,2]
[333460019,1722149353167,-399.902533,0.00012659,2]
[333460053,1722149432871,-153.0,0.00013151,2]
[333460054,1722149432881,-97.81599999,0.00013425,2]
[333460072,1722149438725,-81.71635601,0.00013425,2]
[333460073,1722149438736,-153.0,0.00013541,2]
[333460074,1722149438750,-3127.74364399,0.00013689,2]
[333460075,1722149438762,-315.81433957,0.00013689,2]
[333460090,1722149438924,-28402.29643304,0.00013689,2]
[333460092,1722149438934,-500.0,0.00013698,2]
[333460093,1722149438945,-985.0224054,0.00013698,2]
[333460095,1722149438955,-509.9474601,0.00013698,2]
[333460097,1722149438965,-500.0,0.00013698,2]
[333460099,1722149438975,-500.0,0.00013698,2]
[333460101,1722149438985,-365.06616769,0.00013698,2]
[333460103,1722149438996,-500.0,0.00013698,2]
[333460105,1722149439006,-500.0,0.00013698,2]
[333460107,1722149439018,-500.0,0.00013698,2]
[333460109,1722149439028,-500.0,0.00013698,2]
[333460111,1722149439039,-223.39696642,0.00013698,2]
[333460113,1722149439049,-500.0,0.00013698,2]
[333460114,1722149439059,-500.0,0.00013698,2]
[333460115,1722149439068,-500.0,0.00013698,2]
[333460116,1722149439078,-500.0,0.00013698,2]
[333460117,1722149439088,-500.0,0.00013698,2]
[333460118,1722149439098,-500.0,0.00013698,2]
[333460119,1722149439108,-600.2341649,0.00013698,2]
[333460120,1722149439117,-500.0,0.00013698,2]
[333460121,1722149439127,-500.0,0.00013698,2]
[333460122,1722149439138,-500.0,0.00013698,2]
[333460123,1722149439148,-500.0,0.00013698,2]
[333460124,1722149439161,-500.0,0.00013698,2]
[333460125,1722149439309,-500.0,0.00013698,2]
[333460126,1722149439327,-500.0,0.00013698,2]
[333460127,1722149439338,-500.0,0.00013698,2]
[333460128,1722149439348,-500.0,0.00013698,2]
[333460129,1722149439359,-500.0,0.00013698,2]
[333460130,1722149439369,-500.0,0.00013698,2]
[333460131,1722149439378,-500.0,0.00013698,2]
[333460132,1722149439387,-500.0,0.00013698,2]
[333460133,1722149439397,-500.0,0.00013698,2]
[333460134,1722149439409,-500.0,0.00013698,2]
[333460135,1722149439419,-962.59,0.00013698,2]
[333460136,1722149439429,-500.0,0.00013698,2]
[333460137,1722149439439,-500.0,0.00013698,2]
[333460138,1722149439450,-500.0,0.00013698,2]
[333460139,1722149439462,-500.0,0.00013698,2]
[333460140,1722149439471,-500.0,0.00013698,2]
[333460141,1722149439481,-648.56404425,0.00013698,2]
[333460142,1722149439491,-500.0,0.00013698,2]
[333460143,1722149439500,-500.0,0.00013698,2]
[333460144,1722149439510,-500.0,0.00013698,2]
[333460145,1722149439519,-3034.4,0.00013698,2]
[333460146,1722149439529,-500.95183963,0.00013698,2]
[333460147,1722149439539,-500.0,0.00013698,2]
[333460148,1722149439549,-500.0,0.00013698,2]
[333460149,1722149439558,-500.0,0.00013698,2]
[333460150,1722149439567,-500.48732358,0.00013698,2]
[333460151,1722149439577,-1386.26,0.00013698,2]
[333460152,1722149439586,-500.0,0.00013698,2]
[333460153,1722149439596,-500.0,0.00013698,2]
[333460154,1722149439605,-683.6,0.00013698,2]
[333460155,1722149439615,-500.0,0.00013698,2]
[333460156,1722149439625,-255.39963767,0.00013698,2]
[333460157,1722149439635,-500.0,0.00013698,2]
[333460158,1722149439645,-500.0,0.00013698,2]
[333460159,1722149439657,-500.0,0.00013698,2]
[333460160,1722149439668,-500.0,0.00013698,2]
[333460161,1722149439677,-500.0,0.00013698,2]
[333460162,1722149439687,-582.92,0.00013698,2]
[333460163,1722149439697,-500.0,0.00013698,2]
[333460164,1722149439706,-500.0,0.00013698,2]
[333460165,1722149439717,-500.0,0.00013698,2]
[333460166,1722149439727,-645.97267554,0.00013698,2]
[333460167,1722149439736,-500.0,0.00013698,2]
[333460168,1722149439746,-500.0,0.00013698,2]
[333460169,1722149439756,-604.35,0.00013698,2]
[333460170,1722149439766,-632.83861378,0.00013698,2]
[333460171,1722149439775,-1046.81,0.00013698,2]
[333460172,1722149439785,-500.0,0.00013698,2]
[333460173,1722149439795,-500.0,0.00013698,2]
[333460174,1722149439804,-500.0,0.00013698,2]
[333460175,1722149439814,-2987.37,0.00013698,2]
[333460176,1722149439824,-457.4703668,0.00013698,2]
[333460177,1722149439838,-500.0,0.00013698,2]
[333460178,1722149439848,-1988.66,0.00013698,2]
[333460179,1722149439857,-196.5607584,0.00013698,2]
[333460180,1722149439867,-500.0,0.00013698,2]
[333460181,1722149439878,-500.0,0.00013698,2]
[333460182,1722149439888,-500.0,0.00013698,2]
[333460183,1722149439898,-500.0,0.00013698,2]
[333460184,1722149439911,-500.0,0.00013698,2]
[333460185,1722149439920,-500.0,0.00013698,2]
[333460186,1722149439930,-500.0,0.00013698,2]
[333460187,1722149439940,-739.85,0.00013698,2]
[333460188,1722149439950,-500.0,0.00013698,2]
[333460189,1722149439961,-500.0,0.00013698,2]
[333460190,1722149439970,-500.0,0.00013698,2]
[333460191,1722149439980,-281.92695778,0.00013698,2]
[333460192,1722149439990,-500.0,0.00013698,2]
[333460193,1722149439999,-500.0,0.00013698,2]
[333460194,1722149440010,-1059.45,0.00013698,2]
[333460195,1722149440021,-765.5,0.00013698,2]
[333460196,1722149440032,-500.0,0.00013698,2]
[333460197,1722149440043,-500.0,0.00013698,2]
[333460198,1722149440054,-2078.24,0.00013698,2]
[333460199,1722149440064,-960.85,0.00013698,2]
[333460200,1722149440074,-500.0,0.00013698,2]
[333460201,1722149440084,-690.74,0.00013698,2]
[333460202,1722149440093,-603.56194249,0.00013698,2]
[333460203,1722149440103,-552.7686652,0.00013698,2]
[333460204,1722149440114,-500.0,0.00013698,2]
[333460205,1722149440125,-348.74244384,0.00013698,2]
[333460206,1722149440135,-500.0,0.00013698,2]
[333460207,1722149440145,-500.0,0.00013698,2]
[333460208,1722149440157,-500.0,0.00013698,2]
[333460209,1722149440168,-500.0,0.00013698,2]
[333460210,1722149440178,-500.0,0.00013698,2]
[333460211,1722149440188,-380.35104571,0.00013698,2]
[333460212,1722149440206,-505.63,0.00013698,2]
[333460214,1722149440219,-154.3185983,0.00013699,2]
[333460215,1722149440230,-239.2336341,0.00013699,2]
[333460216,1722149440240,-294.0479944,0.00013699,2]
[333460217,1722149440253,-294.0479944,0.00013699,2]
[333460218,1722149440265,-292.8766427,0.00013699,2]
[333460219,1722149440275,-151.0,0.00013699,2]
[333460220,1722149440285,-151.0,0.00013699,2]
[333460221,1722149440295,-151.0,0.00013699,2]
[333460222,1722149440306,-232.589115,0.00013699,2]
[333460223,1722149440317,-232.589115,0.00013699,2]
[333460224,1722149440327,-151.0,0.00013699,2]
[333460225,1722149440339,-151.0,0.00013699,2]
[333460226,1722149440351,-151.0,0.00013699,2]
[333460227,1722149440362,-151.0,0.00013699,2]
[333460228,1722149440373,-747.90800094,0.0001385,2]
[333460229,1722149440385,-151.0,0.00013962,2]
[333460230,1722149440396,-151.0,0.00013962,2]
[333460231,1722149440407,-151.0,0.00013962,2]
[333460232,1722149440417,-151.0,0.00013962,2]
[333460233,1722149440428,-151.0,0.00013962,2]
[333460235,1722149440438,-151.0,0.00013962,2]
[333460237,1722149440448,-151.0,0.00013962,2]
[333460239,1722149440461,-151.0,0.00013962,2]
[333460241,1722149440470,-232.589115,0.00013962,2]
[333460243,1722149440481,-232.589115,0.00013962,2]
[333460245,1722149440491,-286.932073,0.00013962,2]
[333460247,1722149440501,-151.0,0.00013962,2]
[333460249,1722149440511,-151.0,0.00013962,2]
[333460252,1722149440520,-31845.8544166,0.00013962,2]
[333460255,1722149440531,-500.0,0.00013972,2]
[333460258,1722149440541,-500.0,0.00013972,2]
[333460261,1722149440551,-500.0,0.00013972,2]
[333460264,1722149440561,-354.65484422,0.00013972,2]
[333460267,1722149440570,-151.0,0.00013972,2]
[333460269,1722149440581,-223.84848667,0.00013972,2]
[333460271,1722149440591,-500.0,0.00013972,2]
[333460273,1722149440601,-151.0,0.00013972,2]
[333460275,1722149440611,-160.50894,0.00013972,2]
[333460277,1722149440621,-500.0,0.00013972,2]
[333460279,1722149440631,-500.0,0.00013972,2]
[333460281,1722149440641,-151.0,0.00013972,2]
[333460283,1722149440652,-500.0,0.00013972,2]
[333460285,1722149440663,-151.0,0.00013972,2]
[333460287,1722149440673,-278.914354,0.00013972,2]
[333460289,1722149440683,-500.0,0.00013972,2]
[333460291,1722149440693,-500.0,0.00013972,2]
[333460293,1722149440704,-500.0,0.00013972,2]
[333460295,1722149440714,-151.768272,0.00013972,2]
[333460297,1722149440724,-500.0,0.00013972,2]
[333460299,1722149440735,-151.21895,0.00013972,2]
[333460302,1722149440746,-152.053394,0.00013972,2]
[333460304,1722149440758,-500.0,0.00013972,2]
[333460306,1722149440769,-151.0,0.00013972,2]
[333460308,1722149440779,-500.0,0.00013972,2]
[333460310,1722149440789,-500.0,0.00013972,2]
[333460312,1722149440799,-160.319067,0.00013972,2]
[333460314,1722149440809,-151.0,0.00013972,2]
[333460316,1722149440819,-151.0,0.00013972,2]
[333460318,1722149440829,-151.0,0.00013972,2]
[333460320,1722149440842,-151.0,0.00013972,2]
[333460323,1722149440852,-164.128196,0.00013972,2]
[333460325,1722149440862,-164.128196,0.00013972,2]
[333460327,1722149440872,-151.0,0.00013972,2]
[333460329,1722149440882,-151.0,0.00013972,2]
[333460331,1722149440892,-151.0,0.00013972,2]
[333460333,1722149440901,-151.0,0.00013972,2]
[333460335,1722149440914,-500.0,0.00013972,2]
[333460337,1722149440923,-962.59,0.00013972,2]
[333460339,1722149440933,-500.0,0.00013972,2]
[333460341,1722149440943,-500.0,0.00013972,2]
[333460343,1722149440953,-500.0,0.00013972,2]
[333460345,1722149440963,-151.0,0.00013972,2]
[333460347,1722149440974,-500.0,0.00013972,2]
[333460349,1722149440984,-500.0,0.00013972,2]
[333460351,1722149440995,-3034.4,0.00013972,2]
[333460353,1722149441006,-500.0,0.00013972,2]
[333460355,1722149441015,-151.0,0.00013972,2]
[333460356,1722149441025,-249.494831,0.00013972,2]
[333460358,1722149441035,-1386.26,0.00013972,2]
[333460360,1722149441045,-500.0,0.00013972,2]
[333460362,1722149441058,-683.6,0.00013972,2]
[333460364,1722149441068,-500.0,0.00013972,2]
[333460366,1722149441078,-500.0,0.00013972,2]
[333460368,1722149441088,-500.0,0.00013972,2]
[333460370,1722149441098,-500.0,0.00013972,2]
[333460372,1722149441107,-151.009394,0.00013972,2]
[333460374,1722149441117,-500.0,0.00013972,2]
[333460377,1722149441127,-500.0,0.00013972,2]
[333460378,1722149441137,-519.92,0.00013972,2]
[333460381,1722149441147,-604.35,0.00013972,2]
[333460383,1722149441158,-500.0,0.00013972,2]
[333460385,1722149441168,-1046.81,0.00013972,2]
[333460387,1722149441178,-500.0,0.00013972,2]
[333460389,1722149441189,-500.0,0.00013972,2]
[333460391,1722149441198,-151.0,0.00013972,2]
[333460393,1722149441209,-151.0,0.00013972,2]
[333460395,1722149441219,-2987.37,0.00013972,2]
[333460397,1722149441231,-500.0,0.00013972,2]
[333460400,1722149441242,-1988.66,0.00013972,2]
[333460402,1722149441254,-151.0,0.00013972,2]
[333460404,1722149441265,-500.0,0.00013972,2]
[333460406,1722149441274,-500.0,0.00013972,2]
[333460408,1722149441284,-500.0,0.00013972,2]
[333460410,1722149441294,-500.0,0.00013972,2]
[333460412,1722149441303,-151.0,0.00013972,2]
[333460414,1722149441313,-500.0,0.00013972,2]
[333460416,1722149441324,-500.0,0.00013972,2]
[333460418,1722149441334,-739.85,0.00013972,2]
[333460420,1722149441344,-500.0,0.00013972,2]
[333460422,1722149441354,-500.0,0.00013972,2]
[333460424,1722149441363,-500.0,0.00013972,2]
[333460426,1722149441373,-500.0,0.00013972,2]
[333460428,1722149441383,-500.0,0.00013972,2]
[333460430,1722149441392,-232.589115,0.00013972,2]
[333460432,1722149441402,-1059.45,0.00013972,2]
[333460434,1722149441413,-232.589115,0.00013972,2]
[333460436,1722149441423,-765.5,0.00013972,2]
[333460438,1722149441432,-500.0,0.00013972,2]
[333460440,1722149441444,-500.0,0.00013972,2]
[333460442,1722149441454,-2078.24,0.00013972,2]
[333460445,1722149441464,-151.0,0.00013972,2]
[333460447,1722149441473,-151.0,0.00013972,2]
[333460449,1722149441483,-960.85,0.00013972,2]
[333460451,1722149441494,-151.0,0.00013972,2]
[333460453,1722149441504,-500.0,0.00013972,2]
[333460455,1722149441513,-690.74,0.00013972,2]
[333460457,1722149441523,-151.0,0.00013972,2]
[333460459,1722149441533,-500.0,0.00013972,2]
[333460461,1722149441543,-1087.806,0.00014097,2]
[333460463,1722149441553,-151.0,0.00014097,2]
[333460465,1722149441563,-151.0,0.00014097,2]
[333460467,1722149441572,-152.237788,0.00014097,2]
[333460469,1722149441582,-151.0,0.00014097,2]
[333460471,1722149441592,-189.603126,0.00014236,2]
[333460473,1722149441602,-151.0,0.00014236,2]
[333460475,1722149441612,-151.0,0.00014236,2]
[333460477,1722149441621,-151.0,0.00014236,2]
[333460479,1722149441631,-151.0,0.00014236,2]
[333460481,1722149441641,-164.128196,0.00014236,2]
[333460484,1722149441653,-164.128196,0.00014236,2]
[333460486,1722149441665,-151.0,0.00014236,2]
[333460488,1722149441674,-151.0,0.00014236,2]
[333460490,1722149441684,-151.640203,0.00014236,2]
[333460492,1722149441694,-151.0,0.00014236,2]
[333460494,1722149441704,-151.0,0.00014236,2]
[333460496,1722149441713,-151.0,0.00014236,2]
[333460498,1722149441723,-232.589115,0.00014236,2]
[333460500,1722149441733,-232.589115,0.00014236,2]
[333460502,1722149441743,-275.683736,0.00014236,2]
[333460504,1722149441752,-151.0,0.00014236,2]
[333460506,1722149441762,-151.0,0.00014236,2]
[333460508,1722149441772,-151.0,0.00014236,2]
[333460510,1722149441781,-26303.75944063,0.00014236,2]
[333460761,1722149447049,-500.0,0.00013698,2]
[333460762,1722149447059,-512.14634915,0.00013698,2]
[333460763,1722149447069,-549.72182857,0.00013972,2]
[333460764,1722149447080,-5542.09497597,0.00014236,2]
[333460765,1722149447090,-500.0,0.00014246,2]
[333460766,1722149447099,-151.0,0.00014246,2]
[333460767,1722149447108,-151.0,0.00014246,2]
[333460768,1722149447118,-155.98222,0.00014246,2]
[333460770,1722149447128,-500.0,0.00014246,2]
[333460771,1722149447137,-151.0,0.00014246,2]
[333460772,1722149447147,-500.0,0.00014246,2]
[333460773,1722149447156,-500.0,0.00014246,2]
[333460774,1722149447167,-151.0,0.00014246,2]
[333460775,1722149447177,-500.0,0.00014246,2]
[333460776,1722149447189,-151.0,0.00014246,2]
[333460777,1722149447200,-500.0,0.00014246,2]
[333460778,1722149447211,-500.0,0.00014246,2]
[333460779,1722149447221,-500.0,0.00014246,2]
[333460780,1722149447232,-500.0,0.00014246,2]
[333460781,1722149447241,-500.0,0.00014246,2]
[333460783,1722149447252,-500.0,0.00014246,2]
[333460785,1722149447262,-500.0,0.00014246,2]
[333460787,1722149447272,-184.214062,0.00014246,2]
[333460789,1722149447282,-180.001254,0.00014246,2]
[333460791,1722149447292,-151.0,0.00014246,2]
[333460793,1722149447302,-164.128196,0.00014246,2]
[333460794,1722149447311,-164.128196,0.00014246,2]
[333460796,1722149447323,-151.0,0.00014246,2]
[333460798,1722149447333,-284.219966,0.00014246,2]
[333460800,1722149447343,-500.0,0.00014246,2]
[333460814,1722149447485,-962.59,0.00014246,2]
[333460816,1722149447495,-500.0,0.00014246,2]
[333460818,1722149447506,-500.0,0.00014246,2]
[333460820,1722149447518,-500.0,0.00014246,2]
[333460821,1722149447527,-500.0,0.00014246,2]
[333460823,1722149447538,-500.0,0.00014246,2]
[333460825,1722149447548,-3034.4,0.00014246,2]
[333460827,1722149447559,-500.0,0.00014246,2]
[333460829,1722149447570,-1386.26,0.00014246,2]
[333460831,1722149447579,-500.0,0.00014246,2]
[333460832,1722149447589,-683.6,0.00014246,2]
[333460834,1722149447599,-500.0,0.00014246,2]
[333460835,1722149447610,-500.0,0.00014246,2]
[333460836,1722149447621,-500.0,0.00014246,2]
[333460837,1722149447631,-500.0,0.00014246,2]
[333460838,1722149447641,-500.0,0.00014246,2]
[333460839,1722149447652,-500.0,0.00014246,2]
[333460840,1722149447661,-604.35,0.00014246,2]
[333460841,1722149447672,-500.0,0.00014246,2]
[333460842,1722149447681,-58.22564831,0.00014246,2]
[333460843,1722149447693,-988.58435169,0.00014246,2]
[333460844,1722149447703,-500.0,0.00014246,2]
[333460845,1722149447712,-500.0,0.00014246,2]
[333460846,1722149447722,-151.0,0.00014246,2]
[333460847,1722149447733,-2987.37,0.00014246,2]
[333460848,1722149447744,-500.0,0.00014246,2]
[333460849,1722149447754,-1988.66,0.00014246,2]
[333460850,1722149447766,-500.0,0.00014246,2]
[333460851,1722149447775,-151.0,0.00014246,2]
[333460852,1722149447784,-309.95093972,0.00014246,2]
[333460854,1722150259988,918.16479878,9.999e-05,2]
[333460855,1722150306329,232.99203054,9.9e-05,2]
[333460856,1722150361412,404.01255801,9.999e-05,2]
[333460857,1722150369707,214.73970325,9.999e-05,2]
[333460858,1722150378410,266.70119659,9.999e-05,2]
[333460859,1722150394448,308.00392057,0.0001,2]
[333460860,1722150397499,727.08965911,9.999e-05,2]
[333460861,1722150403686,370.31403064,9.999e-05,2]
[333460862,1722150428142,-168.3507485,0.0001234,2]
[333460863,1722150428170,-300.0,0.00012759,2]
[333460864,1722150428196,-5946.7966819,0.0001276,2]
[333460865,1722150429134,-765.46396401,0.0001276,2]
[333460866,1722150434337,154.89018238,0.0001,2]
[333460867,1722150441104,-257.53738899,0.0001276,2]
[333460868,1722150487557,273.37336231,9.9e-05,2]
[333460870,1722150496761,273.37336231,9.9e-05,2]
[333460871,1722150506207,273.37336231,9.9e-05,2]
[333460872,1722150514137,273.37336231,9.9e-05,2]
[333460873,1722150550786,341.84161605,9.999e-05,2]
[333460874,1722150569130,-300.0,0.00012759,2]
[333460875,1722150569153,-17799.63,0.0001276,2]
[333460876,1722150571974,333.55988557,9.999e-05,2]
[333461101,1722150649917,-17383.86579155,0.00012797,2]
[333461102,1722150649930,-4620.26532535,0.00012797,2]
[333461103,1722150649940,-798.0862133,0.00012797,2]
[333461104,1722150649950,-183.625884,0.00013425,2]
[333461105,1722150649961,-881.00631892,0.00013598,2]
[333461106,1722150649971,-300.0,0.00013697,2]
[333461107,1722150649981,-500.0,0.00013698,2]
[333461108,1722150649991,-500.0,0.00013698,2]
[333461109,1722150650001,-500.0,0.00013698,2]
[333461110,1722150650015,-500.0,0.00013698,2]
[333461111,1722150650025,-500.0,0.00013698,2]
[333461112,1722150650036,-500.0,0.00013698,2]
[333461113,1722150650048,-99.80333865,0.00013698,2]
[333461114,1722150650061,-377.35956123,0.00013698,2]
[333461115,1722150650203,-22.83710012,0.00013698,2]
[333461116,1722150650213,-336.66389992,0.00013698,2]
[333461117,1722150650232,-163.33610008,0.00013698,2]
[333461118,1722150650241,-194.13281581,0.00013698,2]
[333461119,1722150650254,-404.26673774,0.00013698,2]
[333461120,1722150650264,-593.46690665,0.00013698,2]
[333461121,1722150650274,-500.0,0.00013698,2]
[333461122,1722150650284,-500.0,0.00013698,2]
[333461123,1722150650294,-500.0,0.00013698,2]
[333461124,1722150650304,-500.0,0.00013698,2]
[333461125,1722150650314,-500.0,0.00013698,2]
[333461126,1722150650324,-500.0,0.00013698,2]
[333461127,1722150650334,-500.0,0.00013698,2]
[333461128,1722150650343,-451.37328136,0.00013698,2]
[333461129,1722150650356,-48.62671864,0.00013698,2]
[333461130,1722150650366,-624.41,0.00013698,2]
[333461131,1722150650377,-500.0,0.00013698,2]
[333461132,1722150650388,-297.65057786,0.00013698,2]
[333461133,1722150650398,-500.0,0.00013698,2]
[333461134,1722150650408,-500.0,0.00013698,2]
[333461135,1722150650418,-497.87085424,0.00013698,2]
[333461136,1722150650639,-2.12914576,0.00013698,2]
[333461137,1722150650649,-500.0,0.00013698,2]
[333461138,1722150650658,-500.0,0.00013698,2]
[333461139,1722150650667,-500.0,0.00013698,2]
[333461140,1722150650677,-166.92801832,0.00013698,2]
[333461141,1722150650686,-360.80537716,0.00013698,2]
[333461142,1722150650697,-500.0,0.00013698,2]
[333461143,1722150650707,-500.0,0.00013698,2]
[333461144,1722150650717,-500.0,0.00013698,2]
[333461145,1722150650728,-500.0,0.00013698,2]
[333461146,1722150650738,-500.0,0.00013698,2]
[333461147,1722150650747,-425.27957633,0.00013698,2]
[333461148,1722150650759,-74.72042367,0.00013698,2]
[333461149,1722150650770,-918.91,0.00013698,2]
[333461150,1722150650781,-2675.94,0.00013698,2]
[333461151,1722150650793,-500.0,0.00013698,2]
[333461152,1722150650804,-1233.81,0.00013698,2]
[333461153,1722150650814,-500.0,0.00013698,2]
[333461154,1722150650825,-500.0,0.00013698,2]
[333461155,1722150650835,-500.0,0.00013698,2]
[333461156,1722150650845,-138.8849571,0.00013698,2]
[333461157,1722150650857,-361.1150429,0.00013698,2]
[333461158,1722150650867,-500.0,0.00013698,2]
[333461159,1722150650876,-500.0,0.00013698,2]
[333461160,1722150650886,-500.0,0.00013698,2]
[333461161,1722150650896,-598.15,0.00013698,2]
[333461162,1722150650906,-500.0,0.00013698,2]
[333461163,1722150650916,-500.0,0.00013698,2]
[333461164,1722150650926,-500.0,0.00013698,2]
[333461165,1722150650937,-500.0,0.00013698,2]
[333461166,1722150650947,-500.0,0.00013698,2]
[333461167,1722150650958,-500.0,0.00013698,2]
[333461168,1722150650968,-915.96,0.00013698,2]
[333461169,1722150650978,-500.0,0.00013698,2]
[333461170,1722150650988,-500.0,0.00013698,2]
[333461171,1722150650997,-500.0,0.00013698,2]
[333461172,1722150651007,-500.0,0.00013698,2]
[333461173,1722150651017,-500.0,0.00013698,2]
[333461174,1722150651026,-399.42227963,0.00013698,2]
[333461175,1722150651037,-500.0,0.00013698,2]
[333461176,1722150651046,-140.85267747,0.00013698,2]
[333461177,1722150651059,-359.14732253,0.00013698,2]
[333461178,1722150651070,-500.0,0.00013698,2]
[333461179,1722150651079,-820.94,0.00013698,2]
[333461180,1722150651089,-528.8,0.00013698,2]
[333461181,1722150651098,-500.0,0.00013698,2]
[333461182,1722150651108,-500.0,0.00013698,2]
[333461183,1722150651117,-500.0,0.00013698,2]
[333461184,1722150651127,-500.0,0.00013698,2]
[333461185,1722150651136,-1273.74,0.00013698,2]
[333461186,1722150651146,-500.0,0.00013698,2]
[333461187,1722150651155,-603.97267747,0.00013698,2]
[333461188,1722150651269,-843.85732253,0.00013698,2]
[333461189,1722150651279,-353.9037258,0.00013698,2]
[333461190,1722150651289,-1760.91,0.00013698,2]
[333461191,1722150651298,-500.0,0.00013698,2]
[333461192,1722150651308,-500.0,0.00013698,2]
[333461193,1722150651317,-500.0,0.00013698,2]
[333461194,1722150651326,-500.0,0.00013698,2]
[333461195,1722150651336,-500.0,0.00013698,2]
[333461196,1722150651345,-500.0,0.00013698,2]
[333461197,1722150651355,-500.0,0.00013698,2]
[333461198,1722150651366,-239.32895169,0.00013698,2]
[333461199,1722150651380,-462.37104831,0.00013698,2]
[333461200,1722150651401,-500.0,0.00013698,2]
[333461201,1722150651411,-500.0,0.00013698,2]
[333461202,1722150651421,-1925.89,0.00013698,2]
[333461203,1722150651430,-614.72,0.00013698,2]